[Event "Baku Open 2024"]
[Site "Baku"]
[Date "2024.07.06"]
[Round "8.30"]
[White "Ahmad, Khagan"]
[Black "Saravana, Krishnan P."]
[Result "1-0"]
[ECO "B13"]
[WhiteElo "2401"]
[BlackElo "2236"]
[Annotator "TA"]
[PlyCount "91"]
[EventDate "2024.06.29"]
[EventType "swiss"]
[EventCountry "AZE"]
[SourceTitle "playchess.com"]
[Source "ChessBase"]
[SourceQuality "1"]
[TimeControl "5400+30"]

{[%evp 18,91,36,-18,-18,-41,0,0,0,-40,-18,-47,-46,-72,-38,-48,-41,-31,-20,-28,0,7,23,-32,-26,-22,-25,-14,-14,-41,-16,-29,-4,0,0,-45,14,17,16,11,22,22,21,0,14,14,7,0,75,68,66,77,68,63,84,81,107,62,55,34,165,150,208,143,350,345,446,231,333,332,492,490,479,472,29988,29989]} 1. e4 {[%emt 1:31:00]} c6 {[%emt 0:03:19]} 2. d4 {[%emt 0:00:00]} d5 {[%emt 0:00:39]} 3. exd5 {[%emt 0:00:00]} cxd5 {[%emt 0:00:23]} 4. Bd3 {[%emt 0:00:00]} Nc6 {[%emt 0:03:59]} 5. c3 {[%emt 0:00:00]} g6 {[%emt 0:01:48]} 6. Bf4 {[%emt 0:00:00]} Nf6 {[%emt 0:00:36]} 7. Nf3 {[%emt 0:00:00]} Bg7 {[%emt 0:00:36]} 8. O-O {[%emt 0:00:00]} O-O {[%emt 0:00:08]} 9. Nbd2 {[%emt 0:00:00]} Nh5 {[%emt 0:00:56]} 10. Bg5 {[%emt 0:00:00]} (10. Be3 $14) 10... f6 $1 $11 {[%emt 0:01:20]} 11. Bh4 {[%emt 0:00:00]} Be6 {[%emt 0:01:10]} 12. Re1 {[%emt 0:00:00]} Bf7 {[%emt 0:01:25] The position is equal.} 13. b4 {[%emt 0:00:00]} e6 {[%emt 0:03:49]} 14. b5 {[%emt 0:00:00]} Ne7 {[%emt 0:01:25]} 15. c4 {[%emt 0:00:00]} Nf5 {[%emt 0:12:23]} 16. cxd5 {[%emt 0:00:00]} Qxd5 {[%emt 0:01:01]} 17. Bc4 {[%emt 0:00:00]} Qd7 {[%emt 0:01:48][%cal Oa8d8]} 18. Ne4 {[%emt 0:00:00]} Nxh4 {[%emt 0:04:24]} 19. Nxh4 {[%emt 0:00:00]} b6 {[%emt 0:05:36] Wards off Nc5} (19... f5 20. Ng5 Qxd4 (20... Bxd4 $2 21. Nhf3 $18) 21. Qxd4 Bxd4 22. Rad1 $18) 20. Nf3 {[%emt 0:00:00]} (20. g3 $1 $11) 20... Nf4 {[%emt 0:01:34]} 21. Qb3 {[%emt 0:00:00]} Rac8 {[%emt 0:01:51]} 22. g3 {[%emt 0:00:00]} Nd5 {[%emt 0:02:11]} 23. Rac1 {[%emt 0:00:00]} Rfd8 {[%emt 0:01:20]} 24. h4 {[%emt 0:00:00]} h6 {[%emt 0:01:28]} 25. Nc3 {[%emt 0:00:00]} Nc7 {[%emt 0:06:03]} 26. Bf1 {[%emt 0:00:00]} Nd5 {[%emt 0:06:20]} (26... e5 $1 $15 27. Bc4 Bxc4 (27... exd4 28. Nxd4 Bxc4 29. Qxc4+ Qf7 30. Qxf7+ Kxf7 31. Nc6 $16) 28. Qxc4+ Ne6) 27. Nxd5 {[%emt 0:00:00]} exd5 {[%emt 0:00:43]} 28. Kh2 {[%emt 0:00:00]} g5 {[%emt 0:04:13]} 29. hxg5 {[%emt 0:00:00]} hxg5 {[%emt 0:00:16]} 30. Nd2 {[%emt 0:00:00]} Bh6 {[%emt 0:05:06]} 31. Rxc8 {[%emt 0:00:49]} Rxc8 {[%emt 0:00:16]} 32. Qf3 {[%emt 0:06:36][%cal Of1h3]} Qd6 {[%emt 0:02:54]} (32... f5 $11) 33. Qf5 {[%emt 0:00:51]} Re8 {[%emt 0:02:06]} 34. Rxe8+ {[%emt 0:01:12]} Bxe8 {[%emt 0:00:03]} 35. Bg2 {[%emt 0:02:54]} Kg7 {[%emt 0:01:41]} 36. Bxd5 {[%emt 0:02:11] Black must now prevent Be4.} (36. Qxd5 $6 Qxd5 37. Bxd5 Bxb5 $11) 36... Bd7 {[%emt 0:08:27]} 37. Qe4 {[%emt 0:00:54] And now Nc4 would win. White is more active.} f5 $1 {[%emt 0:08:58]} 38. Nc4 {[%emt 0:00:17]} Qf6 {[%emt 0:00:11]} (38... Qxg3+ $1 $14 39. Kxg3 fxe4) 39. Qe3 $18 {[%emt 0:02:40]} Bxb5 {[%emt 0:01:56]} (39... f4 $16 40. Qa3 fxg3+ 41. fxg3 Qf5) 40. Ne5 $40 {[%emt 0:00:05][%mdl 128] Hoping for Qc3. White wants a kill.} Qe7 $2 {[%emt 0:02:37] Loses the game.} (40... f4 $16 41. Qc3 Qd6) 41. Qf3 {[%emt 0:00:41]} Bd7 {[%emt 0:01:02]} 42. Qc3 {[%emt 0:00:39]} (42. Bb3 $142 {Qb7 is the strong threat.} Be8 43. Qxf5) 42... Qd6 {[%emt 0:01:06] [#]} (42... Kf6 $142 43. Bc6 Bc8) 43. Bb3 $1 {[%emt 0:00:31]} b5 {[%emt 0:01:46]} (43... f4 $142 44. Qc4 fxg3+ 45. Kh1 (45. Kxg3 Qf8 $18) 45... Qf8) 44. Nxd7 {[%emt 0:00:26]} Qxd7 {[%emt 0:00:07]} 45. d5+ {[%emt 0:00:35][%cal Bd4d5,Bd5d6][%mdl 32]} Kf7 {[%emt 0:01:26]} (45... Kh7 $18 46. Qc6 Qg7) 46. d6+ {[%emt 0:00:07] Weighted Error Value: White=0.19 (very precise) /Black=0.57.  Loses game:     	---       	Black=1      Mistake:       	White=2     	Black=7      Inaccurate:     	White=5     	Black=4      OK:         	White=12    	Black=7      Best:        	White=6     	---        Strong:       	White=1     	Black=1} 1-0

[Event "Baku Open 2024"]
[Site "Baku"]
[Date "2024.07.06"]
[Round "8.31"]
[White "Fataliyeva, Ulviyya"]
[Black "Prokhorov, Aleksey"]
[Result "0-1"]
[ECO "E94"]
[WhiteElo "2399"]
[BlackElo "2161"]
[Annotator "TA"]
[PlyCount "72"]
[EventDate "2024.06.29"]
[EventType "swiss"]
[EventCountry "AZE"]
[SourceTitle "playchess.com"]
[Source "ChessBase"]
[SourceQuality "1"]
[TimeControl "5400+30"]

{[%evp 19,72,30,81,71,70,57,88,30,110,112,116,114,121,126,112,113,236,67,47,60,97,99,144,12,6,0,0,-33,-20,-26,0,-8,-7,-10,-12,-14,-14,-95,-89,-101,-108,-104,-108,-97,-105,-102,-68,-78,0,-8,114,114,105,-733,-710]} 1. d4 {[%emt 0:00:04]} Nf6 {[%emt 0:00:36]} 2. c4 {[%emt 0:00:03]} g6 {[%emt 0:00:28]} 3. Nc3 {[%emt 0:00:02]} Bg7 {[%emt 0:00:29]} 4. e4 {[%emt 0:00:03]} d6 {[%emt 0:00:34]} 5. Nf3 {[%emt 0:00:03]} O-O {[%emt 0:00:45]} 6. Be2 {[%emt 0:00:05]} e5 {[%emt 0:01:09]} 7. O-O {[%emt 0:00:05]} exd4 {[%emt 0:04:20]} 8. Nxd4 {[%emt 0:00:35]} Re8 {[%emt 0:00:48]} 9. f3 {[%emt 0:00:04]} c6 {[%emt 0:00:43]} 10. Kh1 {[%emt 0:00:18]} d5 {[%emt 0:16:33]} (10... Nfd7 $11) 11. cxd5 $16 {[%emt 0:00:24]} cxd5 {[%emt 0:00:08]} 12. Bg5 {[%emt 0:00:04] Nxd5 is the strong threat.} dxe4 {[%emt 0:01:30]} 13. Nxe4 {[%emt 0:11:00]} (13. Ndb5 $16 {Strongly threatening fxe4.} exf3 14. Qxd8 Rxd8 15. Rxf3) 13... h6 {[%emt 0:01:46]} (13... Qb6 $11 14. Bc4 Bd7) 14. Bxf6 $1 {[%emt 0:00:33]} Bxf6 {[%emt 0:00:15]} 15. Nb5 {[%emt 0:00:50][%cal Bd4b5,Bb5d6,Bd6e4][%mdl 32] A dynamic duo of knights.} Na6 {[%emt 0:15:54]} 16. Nbd6 {[%emt 0:03:19]} Rf8 {[%emt 0:01:19]} 17. Bc4 $1 {[%emt 0:04:48] Black is weak on the light squares} Kg7 {[%emt 0:10:26]} (17... Be6 $16) 18. Nxf6 $2 {[%emt 0:07:54]} (18. f4 $18) 18... Qxf6 $14 {[%emt 0:04:37]} 19. Re1 {[%emt 0:04:04] Hoping for Bxf7.} Nc7 {[%emt 0:03:21]} 20. Ne4 {[%emt 0:02:59]} Qxb2 {[%emt 0:11:00]} 21. Qd6 {[%emt 0:01:51]} (21. Rb1 $1 $16 {[%cal Rb1b2]} Qe5 22. a4) 21... Ne8 $11 {[%emt 0:02:15]} 22. Qe7 {[%emt 0:01:11]} Bf5 {[%emt 0:01:28] Really sharp!} 23. Bb3 {[%emt 0:13:29]} (23. Rab1 $5 Qd4 $8 24. Bb3 $14) 23... Bxe4 {[%emt 0:11:06]} 24. fxe4 {[%emt 0:01:09][%cal Oe1f1] aiming for Rf1!} Rc8 {[%emt 0:00:55]} 25. Rab1 $132 {[%emt 0:02:28][%mdl 2048] White is not keeping still} Qc3 {[%emt 0:02:28]} 26. Qxb7 {[%emt 0:00:47]} (26. e5 {is interesting.} Rc7 27. Qh4 a5 28. Qf4) 26... Rc7 {[%emt 0:00:09]} 27. Qb5 {[%emt 0:04:44]} Nf6 {[%emt 0:01:08]} 28. Qf1 {[%emt 0:11:31]} (28. e5 $11 Ng4 29. h3) 28... Qe5 $17 {[%emt 0:00:49]} 29. Rbd1 {[%emt 0:01:30]} Re8 {[%emt 0:01:03]} 30. Qf3 {[%emt 0:03:29]} Ree7 {[%emt 0:03:02]} 31. Rd3 {[%emt 0:03:58]} Nxe4 {[%emt 0:01:49][%cal Oe4f2] Threatens to win with ...Nf2+!} 32. Rde3 {[%emt 0:01:26][%cal Og2g4]} f5 {[%emt 0:00:13] ...Rc3 would now be deadly.} 33. g4 $1 {[%emt 0:00:26]} a5 {[%emt 0:02:54] Black is much more active.} (33... Re8 $17) 34. Qg2 {[%emt 0:01:07] And now gxf5 would win.} Kf6 {[%emt 0:00:50] [#]} ({Don't play} 34... Qf4 35. gxf5 Nf2+ 36. Kg1 Rxe3 37. Qxg6+ Kf8 38. Qg8+ Ke7 39. Qf7+ Kd6 40. Qd5+ Ke7 41. Qf7+ Kd6 42. Qd5+ Ke7 43. Qf7+) (34... a4 $11 35. gxf5 axb3 (35... Qxf5 36. Rxe4 $11) 36. Qxg6+ (36. Rxe4 $2 Qxe4 37. Qxe4 Rxe4 $19) 36... Kf8 37. Rxe4 Qd5 38. Qxh6+ Kg8 39. Qg6+ Kf8 40. Qf6+ Kg8 41. Qg6+ Kf8 42. Qf6+ Kg8 43. Qg6+) 35. gxf5 $1 $16 {[%emt 0:00:51]} gxf5 {[%emt 0:00:04] [#]} 36. Rxe4 {[%emt 0:00:25][%mdl 8192]} Qxe4 {[%emt 0:00:14] Black used his chance.   Weighted Error Value: White=0.39/Black=0.27 (precise) .  Loses game:     	White=1     	---        Missed win:     	White=1     	---        Mistake:       	White=3     	Black=4      Inaccurate:     	White=1     	Black=5      OK:         	White=5     	Black=7      Best:        	---       	Black=3      Strong:       	White=4     	---} 0-1

[Event "Baku Open 2024"]
[Site "Baku"]
[Date "2024.07.06"]
[Round "8.32"]
[White "Aghaverdiyeva, Maryam"]
[Black "Mohamed Anees M"]
[Result "0-1"]
[ECO "C41"]
[WhiteElo "1834"]
[BlackElo "2306"]
[Annotator "TA"]
[PlyCount "127"]
[EventDate "2024.06.29"]
[EventType "swiss"]
[EventCountry "AZE"]
[SourceTitle "playchess.com"]
[Source "ChessBase"]
[SourceQuality "1"]
[TimeControl "5400+30"]

{[%evp 10,127,37,26,24,22,29,25,17,16,33,12,29,18,14,25,39,50,52,62,86,91,108,82,91,92,138,113,133,90,78,43,207,43,162,22,35,0,72,29,49,56,37,23,154,0,0,0,0,0,41,0,0,0,0,-21,0,0,0,0,0,-104,-119,-187,0,-214,11,0,0,0,0,0,0,0,0,2,15,0,0,-20,-36,-70,-80,-247,-247,-242,-227,-137,-77,-133,-133,-122,-89,-826,-407,-1114,-913,-614,-308,-340,-266,-1179,-404,-5583,-5089,-4582,-4568,-5624,-5624,-29972,-29973,-29974,-29975,-29976,-29977,-29978,-29979,-29989,-29990,-29991]} 1. e4 {[%emt 0:00:04]} d6 {[%emt 0:00:12]} 2. d4 {[%emt 0:00:08]} Nf6 {[%emt 0:00:06]} 3. Nc3 {[%emt 0:00:10]} Nbd7 {[%emt 0:00:05]} 4. Nf3 {[%emt 0:00:21]} e5 {[%emt 0:00:06]} 5. Bc4 {[%emt 0:00:09]} Be7 {[%emt 0:00:06]} 6. O-O {[%emt 0:00:09][%cal Oc4f7]} Nb6 {[%emt 0:00:04]} 7. Bb3 {[%emt 0:00:16]} exd4 {[%emt 0:00:27]} 8. Qxd4 {[%emt 0:03:37]} O-O {[%emt 0:01:42] White has an edge.} 9. a4 {[%emt 0:01:07]} a5 {[%emt 0:01:07]} 10. Be3 {[%emt 0:03:00]} Nfd7 {[%emt 0:01:11]} 11. Rad1 {[%emt 0:10:17]} Nc5 {[%emt 0:04:35]} 12. Ba2 {[%emt 0:01:37]} (12. Qd2 {simplifies} Nxb3 13. cxb3 c6 14. h3) 12... Bg4 {[%emt 0:02:23]} 13. e5 $1 {[%emt 0:08:03]} Bxf3 {[%emt 0:02:52]} 14. gxf3 {[%emt 0:00:11][%cal Bg2f3,Bf3f4][%mdl 32]} Ncd7 {[%emt 0:06:18]} 15. exd6 {[%emt 0:05:27]} Bxd6 {[%emt 0:00:49]} 16. Nb5 {[%emt 0:00:14]} Be5 {[%emt 0:20:37]} 17. Qg4 {[%emt 0:17:41]} Qc8 {[%emt 0:08:32]} (17... c6 $142) 18. f4 {[%emt 0:10:09]} Bf6 {[%emt 0:04:53]} 19. Rd2 {[%emt 0:02:26]} Be7 {[%emt 0:09:20]} 20. Rfd1 {[%emt 0:08:22]} (20. Re1 $5) 20... Nc5 {[%emt 0:02:26]} (20... Nf6 $14 21. Qxc8 Raxc8) 21. Qh5 $2 {[%emt 0:02:44]} (21. f5 $18 {And now Bd4 would win.} Nbd7 22. Qf4) 21... Nbd7 {[%emt 0:07:21]} (21... Ne4 $14) 22. Kh1 {[%emt 0:03:35]} ({White should try} 22. f3 $18) 22... Nf6 $11 {[%emt 0:04:59]} 23. Qe5 {[%emt 0:01:47]} Bd6 {[%emt 0:00:16]} (23... Nce4 $1 $11 24. Qxe7 Nxd2 25. Bxd2 (25. Rxd2 $2 Qh3 $19) 25... Qg4) 24. Nxd6 $16 {[%emt 0:06:51]} (24. Bxc5 $2 Bxe5 25. fxe5 Ne4 26. Bxf8 Qh3 $19 (26... Qxf8 27. Re2 $17) (26... Kxf8 27. Rd7 $17) (26... Nxd2 $2 27. Rxd2 Qh3 28. Kg1 $19)) 24... cxd6 {[%emt 0:00:06]} 25. Rxd6 {[%emt 0:00:32]} Nce4 {[%emt 0:00:21][%cal Oc8h3]} 26. Rg1 {[%emt 0:04:59]} Qh3 {[%emt 0:14:28]} (26... Qxc2 $2 27. Bb1 (27. Rxf6 Nxf6 28. Bd4 Ra6 $11) 27... Qxa4 28. Rd4 $18 (28. Rxf6 Nxf6 29. Qxf6 g6 $18)) (26... Ra6 $11 27. Rxa6 bxa6) 27. Rxf6 $2 {[%emt 0:01:47]} (27. Rd3 $1 $16 {Black must now prevent Bd4.} Qf3+ (27... Ng4 $2 28. Qxg7+ Kxg7 29. Bd4+ Kg6 30. Rxh3 $18) 28. Rg2) 27... Qf3+ $11 {[%emt 0:00:16]} (27... Nxf6 28. Rxg7+ (28. Qxf6 $2 Qf3+ 29. Rg2 Qd1+ 30. Rg1 Qxg1+ 31. Kxg1 gxf6 $19) 28... Kh8 29. Qxf6 $18) 28. Rg2 {[%emt 0:00:05]} Nxf6 {[%emt 0:00:12]} 29. Qg5 $1 {[%emt 0:01:05][%csl Gg2][%cal Rg5g7]} Ne8 {[%emt 0:00:35][%cal Oh7h6]} 30. Bc5 {[%emt 0:01:14][%cal Oa2d5]} (30. Bd5 $5 Qe2 (30... Qd1+ 31. Rg1 $11) 31. Qe5 $14) 30... Qd1+ {[%emt 0:04:58]} 31. Rg1 {[%emt 0:00:05]} Qxc2 {[%emt 0:00:12]} 32. Bb1 {[%emt 0:07:33] This pair of bishops is nice.} Qe2 {[%emt 0:01:59]} (32... Qxb2 $5 33. Be4 g6 $15) 33. Bxh7+ {[%emt 0:00:39]} Kxh7 {[%emt 0:00:05]} 34. Bxf8 {[%emt 0:00:03]} Ra6 {[%emt 0:01:19]} 35. Qd5 {[%emt 0:01:01]} (35. Bxg7 $2 {loses.} Qf3+ (35... Qxf2 36. Qh5+) (35... Rg6 $2 36. Qd5 $19) 36. Qg2 (36. Rg2 $2 Rg6 $19) 36... Qxg2+ (36... Qxf4 $2 37. Qh3+ Rh6 38. Bxh6 $18) 37. Rxg2 Nxg7 $19) (35. f5 $11) 35... Qxf2 $17 {[%emt 0:01:55]} 36. Qxf7 {[%emt 0:00:28]} (36. Qd3+ $17 Rg6 37. Rxg6 fxg6 38. Ba3) 36... Qf3+ $19 {[%emt 0:00:04]} 37. Rg2 {[%emt 0:00:04][%cal Of8c5] [#]} Rc6 $2 {[%emt 0:00:48]} 38. Qf5+ {[%emt 0:00:34]} Kg8 {[%emt 0:00:01] Really sharp!} 39. Bc5 $1 {[%emt 0:00:11]} Nf6 $40 {[%emt 0:01:38][%mdl 128] Black has some attack.} 40. Bg1 {[%emt 0:00:48]} Nh5 {[%emt 0:00:18]} 41. Qg4 {[%emt 0:00:36]} Qxg4 {[%emt 0:00:41]} 42. Rxg4 $11 {[%emt 0:00:02][%mdl 4096] Endgame. KRB-KRN} Rc4 {[%emt 0:00:08]} 43. Rg5 {[%emt 0:00:46]} Nxf4 {[%emt 0:00:04]} 44. Be3 {[%emt 0:00:58] Rg4 would now be deadly.} Rxa4 {[%emt 0:01:05]} 45. Bxf4 {[%emt 0:00:19]} Rxf4 {[%emt 0:00:05] KR-KR} 46. Rb5 {[%emt 0:00:07] [#]} (46. Rxa5 $17 {keeps fighting.} Rb4 47. Kg2) 46... Rb4 $1 $19 {[%emt 0:00:57]} 47. Rxa5 {[%emt 0:00:31]} Rxb2 {[%emt 0:00:04]} 48. Kg1 {[%emt 0:00:24]} Kf7 {[%emt 0:00:14] Black is more active.} (48... b5 $142 {Threatens to win with ...Kh7.} 49. h4 Kh7) 49. Ra7 {[%emt 0:00:13]} (49. Kf1 $142) 49... Ke6 {[%emt 0:00:29] Hoping for ...g5.} 50. Kf1 {[%emt 0:01:17]} Kd6 {[%emt 0:00:10][%cal Od6c6] ...Kc6! is the strong threat.} ({Much weaker is} 50... Rxh2 $6 51. Rxb7 g5 52. Rg7 $11) 51. Kg1 $2 {[%emt 0:00:40][%mdl 8192]} (51. Ke1 $17) 51... Kc6 {[%emt 0:00:16]} 52. Ra8 {[%emt 0:00:14]} (52. h4 $142 Rb4 53. Ra2) 52... Re2 {[%emt 0:00:20]} 53. Rc8+ {[%emt 0:00:33]} Kb6 {[%emt 0:01:48]} 54. Rf8 {[%emt 0:00:44]} Re7 {[%emt 0:00:13]} 55. Kf2 $2 {[%emt 0:00:18]} (55. Rf1) 55... Kc5 {[%emt 0:00:06]} 56. Rf5+ {[%emt 0:00:40]} (56. Rc8+ $142 Kb6 57. Rc3) 56... Kb4 {[%emt 0:00:13]} 57. Rf4+ {[%emt 0:00:18]} Ka5 {[%emt 0:00:04] aiming for ...b6.} 58. h4 {[%emt 0:00:20]} b5 {[%emt 0:00:04]} 59. Kg3 {[%emt 0:00:39]} b4 {[%emt 0:00:07] Black mates.} 60. Kg4 {[%emt 0:00:41]} b3 {[%emt 0:00:35]} 61. Rf8 {[%emt 0:00:07]} Rb7 {[%emt 0:00:06]} 62. Ra8+ {[%emt 0:00:11]} Kb4 {[%emt 0:00:04]} 63. Kg5 {[%emt 0:00:07]} b2 {[%emt 0:00:04]} 64. Kf5 {[%emt 0:02:12] Weighted Error Value: White=0.78/Black=0.32.  Loses game:     	White=3     	Black=1      Missed win:     	White=1     	Black=1      Mistake:       	White=8     	Black=5      Inaccurate:     	White=5     	Black=1      OK:         	White=10    	Black=16     Best:        	White=2     	Black=5      Strong:       	White=3     	Black=1} 0-1

[Event "Baku Open 2024"]
[Site "Baku"]
[Date "2024.07.06"]
[Round "8.33"]
[White "Bayramov, Zaur"]
[Black "Davidov, Samir"]
[Result "0-1"]
[ECO "C62"]
[WhiteElo "2249"]
[BlackElo "2244"]
[Annotator "TA"]
[PlyCount "86"]
[EventDate "2024.06.29"]
[EventType "swiss"]
[EventCountry "AZE"]
[SourceTitle "playchess.com"]
[Source "ChessBase"]
[SourceQuality "1"]
[TimeControl "5400+30"]

{[%evp 16,86,47,45,80,37,54,38,91,92,76,93,78,90,85,58,54,24,26,35,26,0,0,-15,-31,-104,-96,-218,-208,-385,-289,-400,-381,-470,-497,-442,-339,-372,-368,-341,-341,-506,-489,-574,-567,-559,-562,-555,-523,-433,-330,-347,-296,-504,-499,-503,-487,-477,-481,-427,-420,-1714,-1476,-1224,-720,-29979,-29979,-29986,-29987,-29987,-29988,-29993,-29994]} 1. e4 {[%emt 0:00:03]} e5 {[%emt 0:04:20]} 2. Nf3 {[%emt 0:00:55]} Nc6 {[%emt 0:01:09]} 3. Bb5 {[%emt 0:01:55]} d6 {[%emt 0:02:32]} 4. d4 {[%emt 0:01:26]} Bd7 {[%emt 0:01:28]} 5. Nc3 {[%emt 0:03:45]} Nge7 {[%emt 0:07:58]} 6. O-O {[%emt 0:07:47]} Nxd4 {[%emt 0:04:07]} 7. Nxd4 {[%emt 0:00:36]} exd4 {[%emt 0:00:05]} 8. Bxd7+ {[%emt 0:00:19]} Qxd7 {[%emt 0:00:04]} 9. Qxd4 {[%emt 0:00:10]} Nc6 {[%emt 0:00:25]} 10. Qd3 {[%emt 0:01:31]} Be7 {[%emt 0:02:05][%cal Bf8e7,Be7d8,Bd8b6][%mdl 32]} 11. Nd5 {[%emt 0:07:41]} h5 {[%emt 0:24:06]} (11... O-O $14) 12. f4 {[%emt 0:09:04]} h4 {[%emt 0:00:20][%cal Bh5h4,Bh4h3][%mdl 32]} 13. Rb1 {[%emt 0:03:20]} h3 {[%emt 0:05:17]} 14. g3 {[%emt 0:00:28]} Bd8 {[%emt 0:08:34]} 15. Bd2 {[%emt 0:03:49]} Ne7 $1 {[%emt 0:01:58]} 16. Bc3 {[%emt 0:01:07]} Nxd5 {[%emt 0:04:37]} 17. exd5 {[%emt 0:01:18]} O-O {[%emt 0:00:10]} 18. Rbe1 {[%emt 0:03:35]} c6 {[%emt 0:08:35]} 19. f5 {[%emt 0:13:37]} Bb6+ {[%emt 0:00:13]} 20. Kh1 {[%emt 0:00:19]} ({White should try} 20. Bd4 $1 $15) 20... Rfe8 {[%emt 0:00:53]} 21. Qf3 {[%emt 0:24:15] [#] White does not recover from this.} (21. g4 $17) 21... cxd5 $1 $19 {[%emt 0:01:21] ...d4 would now be deadly.} 22. Bxg7 {[%emt 0:10:41]} (22. Rd1 {keeps fighting.}) 22... Rxe1 {[%emt 0:03:17]} (22... Kxg7 23. Qg4+ Kf8 24. Qh4 $18 (24. Qxh3 Bd4 $11) (24. Qxh3 Bd4 $11)) 23. Rxe1 {[%emt 0:00:04] [#] White threatens Bf6 and mate.} Re8 $1 {[%emt 0:00:30]} (23... Kxg7 $2 {too greedy.} 24. Qg4+ Kf8 25. Qh4 $18) 24. Bc3 {[%emt 0:02:32] Intending Qg4+ and mate.} Rxe1+ {[%emt 0:00:36]} 25. Bxe1 {[%emt 0:00:03][%mdl 4096] Endgame. KQB-KQB} Qa4 {[%emt 0:01:04][%csl LRa2,LRc2] Inhibits Qg4+.} 26. Bf2 {[%emt 0:02:29]} Bxf2 {[%emt 0:03:17]} (26... Qxa2 $2 27. Bxb6 axb6 28. Kg1 $19) 27. Qxf2 {[%emt 0:00:02]} Qxa2 {[%emt 0:00:06] KQ-KQ} 28. Qf1 {[%emt 0:00:51] Dodges Qa1} (28. Kg1 $142) 28... Qxb2 {[%emt 0:00:04]} 29. Qxh3 {[%emt 0:00:05]} Qb1+ {[%emt 0:00:02]} 30. Kg2 {[%emt 0:00:04]} Qxc2+ {[%emt 0:00:02]} 31. Kg1 {[%emt 0:00:05]} Qd1+ {[%emt 0:00:05]} 32. Kf2 {[%emt 0:01:32]} Qd4+ {[%emt 0:00:17]} 33. Ke2 {[%emt 0:00:36]} Qe4+ {[%emt 0:00:05]} 34. Kd1 $2 {[%emt 0:00:49]} (34. Kd2) 34... d4 {[%emt 0:00:15]} 35. Qh5 {[%emt 0:00:26]} Qd3+ {[%emt 0:00:04]} 36. Kc1 {[%emt 0:00:34]} Qe3+ {[%emt 0:00:04]} 37. Kb2 {[%emt 0:00:14]} d3 {[%emt 0:00:06]} 38. Qg4+ {[%emt 0:00:46]} (38. Kc3 $142) 38... Kf8 {[%emt 0:00:06]} 39. Qh4 {[%emt 0:00:34]} Ke8 {[%emt 0:01:27] ( -> ...Qd2+)} 40. Qh8+ {[%emt 0:00:27]} Kd7 {[%emt 0:00:06] Black mates.} 41. Qb8 {[%emt 0:00:10]} Qd4+ {[%emt 0:00:05]} 42. Ka3 {[%emt 0:00:22]} Qc5+ {[%emt 0:00:44]} 43. Kb2 {[%emt 0:00:31]} Qb4+ {[%emt 0:00:06] Weighted Error Value: White=0.84/Black=0.23 (precise) .  Mistake:       	White=6     	Black=1      Inaccurate:     	White=5     	---        OK:         	White=5     	Black=11     Best:        	White=2     	Black=7      Strong:       	---       	Black=2} (43... Qxf5 44. Qxb7+ Ke6 45. Kc3 $17) 0-1